[Event "Early-Titled-Tuesday-Blitz-June-18-2024"]
[Site "Chess.com"]
[Date "2024.06.18"]
[Round "8"]
[White "ChessLover0108"]
[Black "Rud_Makarian"]
[Result "1-0"]
[WhiteElo "2933"]
[BlackElo "3059"]
[TimeControl "180+1"]
[EndTime "9:31:10 PDT"]
[Termination "ChessLover0108 won on time"]

1. Nf3 {[%clk 0:03:00.9]} 1... Nf6 {[%clk 0:02:59]} 2. c4 {[%clk 0:02:59.9]}
2... e6 {[%clk 0:02:59.4]} 3. Nc3 {[%clk 0:02:58.6]} 3... d5 {[%clk 0:03:00.3]}
4. d4 {[%clk 0:02:59.2]} 4... dxc4 {[%clk 0:03:00.3]} 5. e4 {[%clk 0:02:58.3]}
5... b5 {[%clk 0:02:59.9]} 6. e5 {[%clk 0:02:55]} 6... Nd5 {[%clk 0:03:00]} 7.
Nxb5 {[%clk 0:02:55.7]} 7... Nb6 {[%clk 0:03:00.7]} 8. Be2 {[%clk 0:02:53.7]}
8... Nc6 {[%clk 0:03:00.6]} 9. Be3 {[%clk 0:02:54.1]} 9... Bb7 {[%clk
0:02:59.7]} 10. a3 {[%clk 0:02:54]} 10... Ne7 {[%clk 0:02:59.6]} 11. Rc1 {[%clk
0:02:49]} 11... Qd7 {[%clk 0:02:55.3]} 12. Nc3 {[%clk 0:02:46.9]} 12... Nf5
{[%clk 0:02:55.5]} 13. O-O {[%clk 0:02:44.7]} 13... Be7 {[%clk 0:02:55.7]} 14.
Nd2 {[%clk 0:02:32.5]} 14... Nxd4 {[%clk 0:02:48.6]} 15. Bxd4 {[%clk 0:02:33.4]}
15... Qxd4 {[%clk 0:02:48.1]} 16. Nxc4 {[%clk 0:02:34.2]} 16... Qxd1 {[%clk
0:02:06.8]} 17. Rfxd1 {[%clk 0:02:35.1]} 17... Nxc4 {[%clk 0:01:51.6]} 18. Bxc4
{[%clk 0:02:32.5]} 18... a6 {[%clk 0:01:52.3]} 19. Bb3 {[%clk 0:02:19.9]} 19...
O-O {[%clk 0:01:16.6]} 20. Rd7 {[%clk 0:02:16.1]} 20... Bg5 {[%clk 0:01:16.9]}
21. Rcd1 {[%clk 0:02:15.8]} 21... Rac8 {[%clk 0:01:15.5]} 22. g3 {[%clk
0:02:07.6]} 22... Rb8 {[%clk 0:00:57.9]} 23. f4 {[%clk 0:01:30.5]} 23... Bc8
{[%clk 0:00:47.8]} 24. R7d2 {[%clk 0:00:59.9]} 24... Be7 {[%clk 0:00:36.8]} 25.
Bc2 {[%clk 0:00:57.5]} 25... g6 {[%clk 0:00:31.1]} 26. Be4 {[%clk 0:00:55.2]}
26... Kg7 {[%clk 0:00:31.4]} 27. Na4 {[%clk 0:00:48.5]} 27... a5 {[%clk
0:00:21.6]} 28. Bc6 {[%clk 0:00:43.7]} 28... Ba6 {[%clk 0:00:17.3]} 29. Rd7
{[%clk 0:00:40.9]} 29... Rfd8 {[%clk 0:00:14.7]} 30. Kf2 {[%clk 0:00:36.2]}
30... Kf8 {[%clk 0:00:11.2]} 31. Ke1 {[%clk 0:00:34.2]} 31... Bc4 {[%clk
0:00:05.8]} 32. Nc5 {[%clk 0:00:29.8]} 32... Rbc8 {[%clk 0:00:03.4]} 33. Bb7
{[%clk 0:00:22.4]} 33... Rb8 {[%clk 0:00:03.8]} 34. Bc6 {[%clk 0:00:10.7]} 34...
Rbc8 {[%clk 0:00:04.2]} 35. b3 {[%clk 0:00:10.8]} 35... Rxd7 {[%clk 0:00:02.8]}
36. Nxd7+ {[%clk 0:00:11.7]} 36... Kg7 {[%clk 0:00:03.3]} 37. bxc4 {[%clk
0:00:12.3]} 37... Bxa3 {[%clk 0:00:04]} 38. Ke2 {[%clk 0:00:12.6]} 38... Bb4
{[%clk 0:00:04.3]} 39. Rb1 {[%clk 0:00:13]} 39... Rd8 {[%clk 0:00:04]} 40. Kd3
{[%clk 0:00:12.2]} 40... h6 {[%clk 0:00:03.7]} 41. Kc2 {[%clk 0:00:11.4]} 41...
g5 {[%clk 0:00:03.9]} 42. Rd1 {[%clk 0:00:10.4]} 42... Rg8 {[%clk 0:00:02.5]}
43. Nf6 {[%clk 0:00:09.2]} 43... Rb8 {[%clk 0:00:02.1]} 44. Rd7 {[%clk
0:00:09.3]} 44... Bc5 {[%clk 0:00:02.4]} 45. Rxc7 {[%clk 0:00:08.8]} 45... gxf4
{[%clk 0:00:01.5]} 46. gxf4 {[%clk 0:00:09]} 46... Be3 {[%clk 0:00:01.8]} 47.
Bd7 {[%clk 0:00:08.6]} 47... Bxf4 {[%clk 0:00:01.8]} 48. Nh5+ {[%clk 0:00:09.3]}
1-0

[Event "Early-Titled-Tuesday-Blitz-June-18-2024"]
[Site "Chess.com"]
[Date "2024.06.18"]
[Round "8"]
[White "stasOR4ik"]
[Black "Ordekalog"]
[Result "0-1"]
[WhiteElo "2458"]
[BlackElo "2626"]
[TimeControl "180+1"]
[EndTime "9:31:10 PDT"]
[Termination "Ordekalog won by resignation"]

1. e4 {[%clk 0:03:00.9]} 1... c5 {[%clk 0:02:59.1]} 2. c3 {[%clk 0:03:00.7]}
2... d5 {[%clk 0:02:58.2]} 3. exd5 {[%clk 0:03:01.6]} 3... Nf6 {[%clk
0:02:57.6]} 4. Nf3 {[%clk 0:03:00.7]} 4... Nxd5 {[%clk 0:02:56.7]} 5. d4 {[%clk
0:03:01]} 5... cxd4 {[%clk 0:02:56.2]} 6. cxd4 {[%clk 0:02:56.4]} 6... Nc6
{[%clk 0:02:55.2]} 7. Nc3 {[%clk 0:02:57]} 7... e6 {[%clk 0:02:53.8]} 8. Bd3
{[%clk 0:02:55.7]} 8... Be7 {[%clk 0:02:50.6]} 9. O-O {[%clk 0:02:54]} 9... O-O
{[%clk 0:02:50.3]} 10. Ne4 {[%clk 0:02:53.7]} 10... Bd7 {[%clk 0:02:38.2]} 11.
Re1 {[%clk 0:02:06.2]} 11... Rc8 {[%clk 0:02:37.1]} 12. Nfg5 {[%clk 0:01:59.8]}
12... f5 {[%clk 0:02:10.7]} 13. Qh5 {[%clk 0:01:32.7]} 13... h6 {[%clk
0:02:09.7]} 14. Nc5 {[%clk 0:01:03.7]} 14... Bxc5 {[%clk 0:01:47.9]} 15. Nxe6
{[%clk 0:00:45.5]} 15... Bxe6 {[%clk 0:01:34.2]} 16. Rxe6 {[%clk 0:00:46.4]}
16... Nf6 {[%clk 0:01:15.4]} 17. Qxf5 {[%clk 0:00:40.2]} 17... Nxd4 {[%clk
0:01:15.1]} 18. Qh3 {[%clk 0:00:23.5]} 18... Nxe6 {[%clk 0:01:01]} 19. Qxe6+
{[%clk 0:00:24.4]} 19... Kh8 {[%clk 0:01:00.6]} 20. Qf5 {[%clk 0:00:19.6]} 20...
Bxf2+ {[%clk 0:00:47.1]} 21. Kh1 {[%clk 0:00:19.2]} 21... Rc5 {[%clk 0:00:42.9]}
22. Qf3 {[%clk 0:00:17.8]} 22... Qd5 {[%clk 0:00:35.5]} 23. Qxf2 {[%clk
0:00:14.7]} 23... Rxc1+ {[%clk 0:00:34.4]} 24. Rxc1 {[%clk 0:00:14.3]} 24...
Qxd3 {[%clk 0:00:34.3]} 25. Qxa7 {[%clk 0:00:13.9]} 25... Ng4 {[%clk 0:00:27.4]}
26. h3 {[%clk 0:00:14.1]} 26... Nf2+ {[%clk 0:00:26.2]} 27. Kh2 {[%clk
0:00:14.3]} 27... Qd6+ {[%clk 0:00:19.1]} 28. Kg1 {[%clk 0:00:14.1]} 28... Nd3
{[%clk 0:00:15.5]} 29. Rf1 {[%clk 0:00:13.6]} 29... Rxf1+ {[%clk 0:00:13.1]} 30.
Kxf1 {[%clk 0:00:14.5]} 30... Qf4+ {[%clk 0:00:12]} 31. Ke2 {[%clk 0:00:13.2]}
31... Qe4+ {[%clk 0:00:11.6]} 32. Kd2 {[%clk 0:00:12]} 32... Kh7 {[%clk
0:00:10.8]} 33. Qa3 {[%clk 0:00:07.4]} 33... Ne5 {[%clk 0:00:06.7]} 34. Qg3
{[%clk 0:00:07]} 34... Nc4+ {[%clk 0:00:05.9]} 35. Kc3 {[%clk 0:00:07.2]} 35...
Ne3 {[%clk 0:00:05]} 36. b4 {[%clk 0:00:06]} 36... Nd5+ {[%clk 0:00:04.5]} 37.
Kb3 {[%clk 0:00:06.2]} 37... Qxb4+ {[%clk 0:00:04.4]} 38. Kc2 {[%clk 0:00:06.9]}
38... Qc4+ {[%clk 0:00:04.6]} 39. Kb2 {[%clk 0:00:07.3]} 39... Qb5+ {[%clk
0:00:04.3]} 40. Kc2 {[%clk 0:00:07.5]} 40... Nf6 {[%clk 0:00:03.5]} 41. Qf4
{[%clk 0:00:07]} 41... Qc6+ {[%clk 0:00:04.4]} 42. Kd3 {[%clk 0:00:07.1]} 42...
Qd5+ {[%clk 0:00:04.8]} 43. Kc3 {[%clk 0:00:06.9]} 43... Qc5+ {[%clk 0:00:04.7]}
44. Kb3 {[%clk 0:00:07.4]} 44... Qc8 {[%clk 0:00:05.1]} 45. a4 {[%clk
0:00:06.5]} 45... Qe6+ {[%clk 0:00:05]} 46. Kb4 {[%clk 0:00:06.3]} 46... Nd5+
{[%clk 0:00:05.9]} 47. Kc5 {[%clk 0:00:06.4]} 47... Qc6+ {[%clk 0:00:05.6]} 48.
Kd4 {[%clk 0:00:06]} 48... Nf6 {[%clk 0:00:05.3]} 49. Qf5+ {[%clk 0:00:06.2]}
49... g6 {[%clk 0:00:05.7]} 50. a5 {[%clk 0:00:06.6]} 50... gxf5 {[%clk
0:00:05]} 51. Ke5 {[%clk 0:00:05.8]} 51... Qd5+ {[%clk 0:00:04.3]} 52. Kxf6
{[%clk 0:00:05.2]} 52... Qxa5 {[%clk 0:00:05.2]} 53. g3 {[%clk 0:00:05.2]} 53...
f4 {[%clk 0:00:05.2]} 54. g4 {[%clk 0:00:06.1]} 54... Qg5+ {[%clk 0:00:04.9]}
55. Ke6 {[%clk 0:00:05.8]} 55... f3 {[%clk 0:00:05.8]} 56. Kd6 {[%clk
0:00:05.7]} 56... Qh4 {[%clk 0:00:05.7]} 57. Kc7 {[%clk 0:00:06.6]} 0-1

[Event "Early-Titled-Tuesday-Blitz-June-18-2024"]
[Site "Chess.com"]
[Date "2024.06.18"]
[Round "8"]
[White "maracayo"]
[Black "KoshkaMatrioshka"]
[Result "0-1"]
[WhiteElo "2409"]
[BlackElo "2586"]
[TimeControl "180+1"]
[EndTime "9:31:10 PDT"]
[Termination "KoshkaMatrioshka won on time"]

1. e4 {[%clk 0:03:00.9]} 1... e6 {[%clk 0:02:58]} 2. d3 {[%clk 0:02:59.2]} 2...
c5 {[%clk 0:02:57.6]} 3. Nf3 {[%clk 0:02:59.7]} 3... Nc6 {[%clk 0:02:58]} 4. Be2
{[%clk 0:02:59.9]} 4... g6 {[%clk 0:02:58.5]} 5. O-O {[%clk 0:03:00.4]} 5... Bg7
{[%clk 0:02:59.3]} 6. Re1 {[%clk 0:03:00.7]} 6... Nge7 {[%clk 0:03:00]} 7. c3
{[%clk 0:03:01.1]} 7... e5 {[%clk 0:02:59.9]} 8. Nbd2 {[%clk 0:03:01.4]} 8...
O-O {[%clk 0:03:00]} 9. Bf1 {[%clk 0:03:00.9]} 9... d6 {[%clk 0:03:00]} 10. h3
{[%clk 0:03:01]} 10... h6 {[%clk 0:03:00.3]} 11. a3 {[%clk 0:03:01.3]} 11... Be6
{[%clk 0:02:58.5]} 12. b4 {[%clk 0:03:01.2]} 12... b6 {[%clk 0:02:58.5]} 13. Bb2
{[%clk 0:03:00.8]} 13... Kh7 {[%clk 0:02:58.6]} 14. b5 {[%clk 0:03:00.5]} 14...
Nb8 {[%clk 0:02:52.9]} 15. d4 {[%clk 0:03:01.4]} 15... f6 {[%clk 0:02:30.7]} 16.
Nc4 {[%clk 0:02:55.3]} 16... Qc7 {[%clk 0:02:28.6]} 17. dxe5 {[%clk 0:02:33.9]}
17... dxe5 {[%clk 0:02:27.5]} 18. Qd6 {[%clk 0:02:33.6]} 18... Qxd6 {[%clk
0:02:25.5]} 19. Nxd6 {[%clk 0:02:34.5]} 19... Nd7 {[%clk 0:02:12.1]} 20. Rad1
{[%clk 0:02:30.1]} 20... Rab8 {[%clk 0:02:03.9]} 21. Bc4 {[%clk 0:02:22.2]}
21... Bxc4 {[%clk 0:01:59.7]} 22. Nxc4 {[%clk 0:02:23.1]} 22... Rfd8 {[%clk
0:01:58.9]} 23. Rd6 {[%clk 0:02:14.9]} 23... Nf8 {[%clk 0:01:56.4]} 24. Red1
{[%clk 0:02:14]} 24... Rdc8 {[%clk 0:01:44.6]} 25. a4 {[%clk 0:02:04]} 25... Kg8
{[%clk 0:01:43.2]} 26. Ne3 {[%clk 0:01:58.3]} 26... Kf7 {[%clk 0:01:32.8]} 27.
Nd5 {[%clk 0:01:49.5]} 27... Nxd5 {[%clk 0:01:29.9]} 28. R1xd5 {[%clk
0:01:41.7]} 28... Rb7 {[%clk 0:01:25.6]} 29. h4 {[%clk 0:01:32.3]} 29... h5
{[%clk 0:01:20.6]} 30. c4 {[%clk 0:01:27.5]} 30... Re7 {[%clk 0:01:19.6]} 31. a5
{[%clk 0:01:25.2]} 31... bxa5 {[%clk 0:01:08.9]} 32. Ra6 {[%clk 0:01:24.8]}
32... Ne6 {[%clk 0:01:07.4]} 33. Rxa5 {[%clk 0:01:23]} 33... Bf8 {[%clk
0:01:07.6]} 34. g3 {[%clk 0:01:13.6]} 34... Rb7 {[%clk 0:01:03]} 35. Kg2 {[%clk
0:01:12.4]} 35... Ke8 {[%clk 0:00:58.8]} 36. Ra6 {[%clk 0:01:11.4]} 36... Kf7
{[%clk 0:00:58.7]} 37. Bxe5 {[%clk 0:01:06.2]} 37... fxe5 {[%clk 0:00:50.8]} 38.
Nxe5+ {[%clk 0:01:02.3]} 38... Kf6 {[%clk 0:00:51.3]} 39. Nxg6 {[%clk
0:00:52.9]} 39... Rb6 {[%clk 0:00:51.7]} 40. Nxf8 {[%clk 0:00:39.4]} 40... Rxf8
{[%clk 0:00:48]} 41. Rxa7 {[%clk 0:00:36.8]} 41... Kg6 {[%clk 0:00:48.4]} 42. e5
{[%clk 0:00:30.9]} 42... Nd4 {[%clk 0:00:47.7]} 43. Ra6 {[%clk 0:00:28.5]} 43...
Rxa6 {[%clk 0:00:38.1]} 44. bxa6 {[%clk 0:00:29.4]} 44... Ne6 {[%clk 0:00:36.4]}
45. f4 {[%clk 0:00:23.1]} 45... Kf5 {[%clk 0:00:35.2]} 46. Rd7 {[%clk
0:00:22.7]} 46... Rb8 {[%clk 0:00:34.4]} 47. Rf7+ {[%clk 0:00:19.4]} 47... Ke4
{[%clk 0:00:34.5]} 48. Rf6 {[%clk 0:00:20.3]} 48... Rb2+ {[%clk 0:00:31.4]} 49.
Kh3 {[%clk 0:00:20.4]} 49... Nd4 {[%clk 0:00:32.1]} 50. g4 {[%clk 0:00:16.9]}
50... Rb3+ {[%clk 0:00:32]} 51. Kg2 {[%clk 0:00:16.8]} 51... hxg4 {[%clk
0:00:32.6]} 52. e6 {[%clk 0:00:17.6]} 52... Re3 {[%clk 0:00:15]} 53. h5 {[%clk
0:00:13.6]} 53... Nf5 {[%clk 0:00:07.3]} 54. e7 {[%clk 0:00:08]} 54... Nh4+
{[%clk 0:00:04.6]} 55. Kf1 {[%clk 0:00:06.1]} 55... Kf3 {[%clk 0:00:04.2]} 0-1

[Event "Early-Titled-Tuesday-Blitz-June-18-2024"]
[Site "Chess.com"]
[Date "2024.06.18"]
[Round "8"]
[White "Rile-Man"]
[Black "crazy_but_lazy"]
[Result "1-0"]
[WhiteElo "2542"]
[BlackElo "2657"]
[TimeControl "180+1"]
[EndTime "9:31:16 PDT"]
[Termination "Rile-Man won by resignation"]

1. d4 {[%clk 0:03:00.9]} 1... g6 {[%clk 0:02:59.1]} 2. Bf4 {[%clk 0:02:56.6]}
2... Bg7 {[%clk 0:02:58.9]} 3. Nc3 {[%clk 0:02:54.7]} 3... c5 {[%clk 0:02:57.3]}
4. d5 {[%clk 0:02:51.3]} 4... d6 {[%clk 0:02:49.5]} 5. e4 {[%clk 0:02:51]} 5...
Nf6 {[%clk 0:02:43.5]} 6. Be2 {[%clk 0:02:48.1]} 6... O-O {[%clk 0:02:41.7]} 7.
Nf3 {[%clk 0:02:47.4]} 7... Na6 {[%clk 0:02:30.7]} 8. Nd2 {[%clk 0:02:44.3]}
8... Nc7 {[%clk 0:02:30.8]} 9. a4 {[%clk 0:02:43.8]} 9... a6 {[%clk 0:02:26]}
10. h4 {[%clk 0:02:42.5]} 10... h5 {[%clk 0:02:06.5]} 11. Nc4 {[%clk 0:02:42.1]}
11... Rb8 {[%clk 0:02:05.8]} 12. Nb6 {[%clk 0:02:41.8]} 12... Bg4 {[%clk
0:02:03.6]} 13. f3 {[%clk 0:02:41.4]} 13... Bd7 {[%clk 0:02:03.7]} 14. Qd2
{[%clk 0:02:32.2]} 14... Re8 {[%clk 0:01:54.1]} 15. Bh6 {[%clk 0:02:21.6]} 15...
Bh8 {[%clk 0:01:53.1]} 16. g4 {[%clk 0:01:57.2]} 16... e6 {[%clk 0:01:45.3]} 17.
gxh5 {[%clk 0:01:44.9]} 17... Nxh5 {[%clk 0:01:36.9]} 18. Rg1 {[%clk 0:01:38]}
18... exd5 {[%clk 0:01:27.2]} 19. Nbxd5 {[%clk 0:01:34.3]} 19... Nxd5 {[%clk
0:01:21.2]} 20. Qxd5 {[%clk 0:01:31.8]} 20... Qxh4+ {[%clk 0:01:18.3]} 21. Kd2
{[%clk 0:01:22.3]} 21... Be6 {[%clk 0:01:07.7]} 22. Qg5 {[%clk 0:01:17]} 22...
Qxg5+ {[%clk 0:01:01.1]} 23. Bxg5 {[%clk 0:01:13.2]} 23... Be5 {[%clk
0:01:01.5]} 24. Raf1 {[%clk 0:00:42.6]} 24... Bf4+ {[%clk 0:00:58.9]} 25. Bxf4
{[%clk 0:00:39.2]} 25... Nxf4 {[%clk 0:00:59.8]} 26. Ke3 {[%clk 0:00:37.9]}
26... Nh3 {[%clk 0:00:41.5]} 27. Rg3 {[%clk 0:00:36.6]} 27... d5 {[%clk
0:00:42]} 28. Nxd5 {[%clk 0:00:33.2]} 28... Bxd5 {[%clk 0:00:39]} 29. Rxh3
{[%clk 0:00:32.7]} 29... Kg7 {[%clk 0:00:38.1]} 30. Rfh1 {[%clk 0:00:32.5]}
30... Be6 {[%clk 0:00:34.9]} 31. Rh7+ {[%clk 0:00:29.7]} 31... Kf6 {[%clk
0:00:35.4]} 32. f4 {[%clk 0:00:27.7]} 32... b5 {[%clk 0:00:20.5]} 33. axb5
{[%clk 0:00:27.3]} 33... axb5 {[%clk 0:00:21.4]} 34. Bf3 {[%clk 0:00:23.9]}
34... c4 {[%clk 0:00:08.3]} 35. R1h6 {[%clk 0:00:22.1]} 35... Ke7 {[%clk
0:00:05.5]} 36. Rxg6 {[%clk 0:00:21.3]} 36... Rh8 {[%clk 0:00:05.5]} 37. Rgh6
{[%clk 0:00:19.6]} 37... Rxh7 {[%clk 0:00:05.1]} 38. Rxh7 {[%clk 0:00:20.5]}
38... Ra8 {[%clk 0:00:04.5]} 39. f5 {[%clk 0:00:20.3]} 39... Bd7 {[%clk
0:00:04.6]} 40. e5 {[%clk 0:00:20.3]} 40... Ra2 {[%clk 0:00:04.2]} 41. e6 {[%clk
0:00:20]} 41... Be8 {[%clk 0:00:04.7]} 42. exf7 {[%clk 0:00:19]} 42... Bxf7
{[%clk 0:00:04.9]} 43. Bh5 {[%clk 0:00:19.1]} 43... Rxb2 {[%clk 0:00:05.3]} 44.
Rxf7+ {[%clk 0:00:18.8]} 44... Kd6 {[%clk 0:00:05.9]} 45. c3 {[%clk 0:00:18.8]}
45... Rc2 {[%clk 0:00:05.6]} 46. Kd4 {[%clk 0:00:17.4]} 46... Rd2+ {[%clk
0:00:06]} 47. Ke4 {[%clk 0:00:18]} 47... Rd3 {[%clk 0:00:06.2]} 48. Rf6+ {[%clk
0:00:17.8]} 48... Kc5 {[%clk 0:00:05.8]} 49. Be8 {[%clk 0:00:11.6]} 49... Rxc3
{[%clk 0:00:06.1]} 50. Rc6+ {[%clk 0:00:12.5]} 50... Kb4 {[%clk 0:00:06.8]} 51.
f6 {[%clk 0:00:13.1]} 51... Rc1 {[%clk 0:00:06.3]} 52. f7 {[%clk 0:00:13.4]}
52... Rf1 {[%clk 0:00:06.8]} 53. Ke5 {[%clk 0:00:14]} 53... c3 {[%clk
0:00:07.1]} 54. Rf6 {[%clk 0:00:13.8]} 54... Rxf6 {[%clk 0:00:07.1]} 55. Kxf6
{[%clk 0:00:14.7]} 55... c2 {[%clk 0:00:07.3]} 56. f8=Q+ {[%clk 0:00:15.4]}
56... Kb3 {[%clk 0:00:07.5]} 57. Qc5 {[%clk 0:00:14]} 57... b4 {[%clk
0:00:06.6]} 58. Bg6 {[%clk 0:00:13.3]} 58... Ka3 {[%clk 0:00:06.2]} 59. Qxc2
{[%clk 0:00:12.9]} 59... b3 {[%clk 0:00:06.6]} 60. Qb1 {[%clk 0:00:12.8]} 60...
b2 {[%clk 0:00:07.5]} 61. Bf7 {[%clk 0:00:12.5]} 61... Kb4 {[%clk 0:00:07.3]}
62. Qxb2+ {[%clk 0:00:12.7]} 62... Kc5 {[%clk 0:00:08.2]} 63. Qc3+ {[%clk
0:00:12.2]} 1-0

[Event "Early-Titled-Tuesday-Blitz-June-18-2024"]
[Site "Chess.com"]
[Date "2024.06.18"]
[Round "8"]
[White "marszach123"]
[Black "ChEsper99"]
[Result "0-1"]
[WhiteElo "1932"]
[BlackElo "2250"]
[TimeControl "180+1"]
[EndTime "9:31:18 PDT"]
[Termination "ChEsper99 won by checkmate"]

1. e4 {[%clk 0:02:45.3]} 1... c6 {[%clk 0:02:49.7]} 2. d4 {[%clk 0:02:43.7]}
2... d5 {[%clk 0:02:48.8]} 3. e5 {[%clk 0:02:40.5]} 3... Bf5 {[%clk 0:02:47.4]}
4. h4 {[%clk 0:02:38.5]} 4... h5 {[%clk 0:02:47.5]} 5. Bd3 {[%clk 0:02:37.8]}
5... Bxd3 {[%clk 0:02:48.1]} 6. Qxd3 {[%clk 0:02:38.7]} 6... e6 {[%clk
0:02:46.7]} 7. Nf3 {[%clk 0:02:33.4]} 7... Qa5+ {[%clk 0:02:44.4]} 8. c3 {[%clk
0:02:29]} 8... Be7 {[%clk 0:02:24.4]} 9. Bg5 {[%clk 0:02:24.8]} 9... Nh6 {[%clk
0:02:05.6]} 10. Bxe7 {[%clk 0:02:05]} 10... Kxe7 {[%clk 0:02:06.5]} 11. Nbd2
{[%clk 0:02:01.6]} 11... Qa6 {[%clk 0:02:05.7]} 12. Qc2 {[%clk 0:01:55.5]} 12...
Nf5 {[%clk 0:02:00.5]} 13. Nb3 {[%clk 0:01:50.8]} 13... Nd7 {[%clk 0:01:56.6]}
14. Ng5 {[%clk 0:01:45.3]} 14... b6 {[%clk 0:01:45]} 15. Rh3 {[%clk 0:01:41.4]}
15... c5 {[%clk 0:01:44.9]} 16. Nf3 {[%clk 0:01:20.2]} 16... Rac8 {[%clk
0:01:35.9]} 17. Qd2 {[%clk 0:01:18.9]} 17... Kf8 {[%clk 0:01:23.4]} 18. Ng5
{[%clk 0:01:12.5]} 18... cxd4 {[%clk 0:01:09.4]} 19. Nxd4 {[%clk 0:00:55.2]}
19... Nxd4 {[%clk 0:01:04.7]} 20. cxd4 {[%clk 0:00:56.1]} 20... Ke7 {[%clk
0:00:43.6]} 21. Qb4+ {[%clk 0:00:46.7]} 21... Ke8 {[%clk 0:00:37.5]} 22. Qd6
{[%clk 0:00:30.8]} 22... Qb7 {[%clk 0:00:11.4]} 23. Nxf7 {[%clk 0:00:20.6]}
23... Kxf7 {[%clk 0:00:07.7]} 24. Rf3+ {[%clk 0:00:20.4]} 24... Nf6 {[%clk
0:00:03]} 25. exf6 {[%clk 0:00:12.6]} 25... gxf6 {[%clk 0:00:03.9]} 26. Kf1
{[%clk 0:00:07.8]} 26... Rh6 {[%clk 0:00:03.3]} 27. Qf4 {[%clk 0:00:07.3]} 27...
Rg6 {[%clk 0:00:03]} 28. Re1 {[%clk 0:00:07]} 28... Qd7 {[%clk 0:00:02.5]} 29.
Re5 {[%clk 0:00:05.3]} 29... Rf8 {[%clk 0:00:01.9]} 30. Rxh5 {[%clk 0:00:05.3]}
30... Ke7 {[%clk 0:00:02.4]} 31. Rh7+ {[%clk 0:00:05.2]} 31... Rf7 {[%clk
0:00:02.9]} 32. Rxf7+ {[%clk 0:00:04.4]} 32... Kxf7 {[%clk 0:00:03.8]} 33. h5
{[%clk 0:00:05.3]} 33... Rg7 {[%clk 0:00:01]} 34. Qxf6+ {[%clk 0:00:05.1]} 34...
Kg8 {[%clk 0:00:01.6]} 35. Qf8+ {[%clk 0:00:04]} 35... Kh7 {[%clk 0:00:01.9]}
36. g3 {[%clk 0:00:03.4]} 36... Qe7 {[%clk 0:00:01.7]} 37. Qf4 {[%clk
0:00:02.7]} 37... Qb4 {[%clk 0:00:01.7]} 38. Kg2 {[%clk 0:00:02.7]} 38... Qc4
{[%clk 0:00:01.6]} 39. Re3 {[%clk 0:00:02.7]} 39... Qc7 {[%clk 0:00:02.3]} 40.
h6 {[%clk 0:00:03]} 40... Qxf4 {[%clk 0:00:02.3]} 41. Rf3 {[%clk 0:00:01.7]}
41... Qxf3+ {[%clk 0:00:02.3]} 42. Kxf3 {[%clk 0:00:02]} 42... Rg6 {[%clk
0:00:02.2]} 43. Kf4 {[%clk 0:00:02.9]} 43... Rxh6 {[%clk 0:00:02.7]} 44. Ke5
{[%clk 0:00:03.8]} 44... Kg7 {[%clk 0:00:03.2]} 45. f4 {[%clk 0:00:04.7]} 45...
Kf7 {[%clk 0:00:03.5]} 46. g4 {[%clk 0:00:05.1]} 46... Rh3 {[%clk 0:00:03.7]}
47. g5 {[%clk 0:00:06]} 47... Rg3 {[%clk 0:00:04.2]} 48. Kd6 {[%clk 0:00:06.9]}
48... Rg4 {[%clk 0:00:04.3]} 49. b4 {[%clk 0:00:07.8]} 49... Rxf4 {[%clk
0:00:04.8]} 50. a4 {[%clk 0:00:08.7]} 50... Rxd4 {[%clk 0:00:05.1]} 51. a5
{[%clk 0:00:09.6]} 51... bxa5 {[%clk 0:00:05.1]} 52. b5 {[%clk 0:00:09.8]} 52...
Rb4 {[%clk 0:00:04.9]} 53. b6 {[%clk 0:00:10.7]} 53... Rxb6+ {[%clk 0:00:05.1]}
54. Kc7 {[%clk 0:00:10.7]} 54... Kg6 {[%clk 0:00:04.8]} 55. Kd7 {[%clk
0:00:09.9]} 55... Kxg5 {[%clk 0:00:04.7]} 56. Ke7 {[%clk 0:00:10.8]} 56... e5
{[%clk 0:00:05]} 57. Kf7 {[%clk 0:00:11.7]} 57... e4 {[%clk 0:00:05.5]} 58. Kg7
{[%clk 0:00:12.1]} 58... e3 {[%clk 0:00:06]} 59. Kh8 {[%clk 0:00:13]} 59... e2
{[%clk 0:00:06.6]} 60. Kh7 {[%clk 0:00:13.9]} 60... e1=Q {[%clk 0:00:07.2]} 61.
Kh8 {[%clk 0:00:14.8]} 61... Qe7 {[%clk 0:00:06.1]} 62. Kg8 {[%clk 0:00:14.8]}
62... Rb8# {[%clk 0:00:07]} 0-1